{"text_format":"1","workbook":"xlsx","n_sheets":4,"sheets":["Hoja1","Hoja2","RESUMEN","CONSOLIDADO"],"not_rendered":{"charts":1,"images":5,"macros":1,"external_links":0,"defined_names":0,"comments":0,"pivot_tables":0},"unopened":[],"bounds":{"document_bytes":16777216,"sheet_cells":100000,"rows_first":2000,"rows_last":500,"rows_between":2000,"halvings":0,"cell_chars":16384,"cell_head_chars":4096},"cells_cut":0,"cells_raw":0,"read":"whole","date_system":"1900"}

{"sheet":"Hoja1","index":0,"n_rows":83,"n_cols":10,"rows_kept":83,"cut":false,"hidden":false,"merged":[[81,2,81,9],[80,0,80,1],[75,8,75,9],[79,2,79,5],[74,2,74,3],[74,4,74,5],[74,6,74,7],[75,6,75,7],[75,2,75,5],[72,2,72,3],[72,4,72,5],[72,6,72,7],[73,2,73,3],[73,4,73,5],[73,6,73,7],[70,2,70,3],[70,4,70,5],[70,6,70,7],[71,2,71,3],[71,4,71,5],[71,6,71,7],[66,2,66,6],[68,1,68,9],[69,2,69,3],[69,4,69,5],[69,6,69,7],[26,1,26,9],[28,2,28,6],[40,2,40,7],[31,1,31,9],[33,2,33,7],[34,2,34,7],[35,2,35,7],[30,2,30,7],[29,2,29,6],[25,0,25,9],[23,2,23,7],[21,2,21,7],[22,2,22,7],[17,2,17,7],[19,1,19,9],[63,1,63,9],[61,2,61,7],[65,2,65,6],[37,1,37,9],[39,2,39,7],[43,2,43,6],[45,0,45,9],[46,1,46,9],[48,2,48,6],[50,1,50,9],[52,2,52,6],[55,2,55,7],[57,0,57,9],[58,1,58,9],[60,2,60,7],[9,7,9,9],[10,7,10,9],[13,0,13,9],[16,2,16,7],[14,1,14,9],[11,7,11,9],[11,0,11,1],[10,0,10,1],[9,0,9,1],[9,2,9,5],[10,2,10,5],[11,2,11,5],[3,0,3,9],[7,2,7,5],[8,2,8,5],[7,7,7,9],[8,7,8,9],[5,6,6,9],[5,0,5,1],[5,2,5,5],[6,2,6,5],[6,0,6,1],[7,0,7,1],[8,0,8,1]]}
[]
[]
[]
["FICHA DE EVALUACIÓN DEL DESEMPEÑO DOCENTE PARA IE EIB"]
[]
["UGEL:",null,"HUARAZ",null,null,null,"Los valores que corresponden a la puntuación obtenida   por  los  docentes  es  la  siguiente:"]
["I.E.:"]
["LUGAR:",null,null,null,null,null,null,"ü  Si: Equivale a 1 punto"]
["NIVEL:",null,null,null,null,null,null,"ü  No: Equivale a 0 puntos"]
["DOCENTE:",null,null,null,null,null,null,"ü  Siempre: Equivale a 2 puntos"]
["AULA/AREA:",null,null,null,null,null,null,"ü  Pocas veces: Equivale a 1 punto"]
["FECHA:",null,null,null,null,null,null,"ü  Nunca: Equivale a 0 puntos"]
[]
["DOMINIO 01: PREPARACIÓN PARA EL APRENDIZAJE DE LOS ESTUDIANTES"]
[null,"Competencia 01: Conoce y comprende las características de todos sus estudiantes y sus contextos, los contenidos disciplinares que enseña, los enfoques y procesos pedagógicos, con el propósito de promover capacidades de alto nivel y su formación integral."]
[null,null,null,null,null,null,null,null,"Sí","No"]
[null,"ü","El docente cuenta con: Anecdotario, cuaderno de ocurrencias o ficha de estudiantes para el registro de las competencias, habilidades y necesidades de los estudiantes."]
[null,"ü","El docente cuenta con actas de reuniones de información y coordinación con los padres de familia sobre el desempaño de sus hijos."]
[]
[null,"Competencia 02: Planifica la enseñanza de forma colegiada garantizando la coherencia entre los aprendizajes que quiere lograr en sus estudiantes, el proceso pedagógico, el uso de los recursos disponibles y la evaluación, en una programación curricular en permanente revisión."]
[null,null,null,null,null,null,null,null,"Sí","No"]
[null,"ü","El docente cuenta con: Carpeta pedagógica que contiene las sesiones de aprendizaje con enfoque intercultural."]
[null,"ü","El docente cuenta con calendario comunal. "]
[null,"ü","Elabora proyectos de aprendizaje en el que incorpora el tratamiento de lenguas."]
[]
["DOMINIO 02: ENSEÑANZA PARA EL APRENDIZAJE DE LOS ESTUDIANTES"]
[null,"Competencia 03: Crea un clima propicio para el aprendizaje, la convivencia democrática y la vivencia de la diversidad en todas sus expresiones, con miras a formar ciudadanos críticos e interculturales."]
[null,null,null,null,null,null,null,"Nunca","Pocas Veces","Siempre"]
[null,"ü","El docente implementa en el aula, junto con los estudiantes, las normas de convivencia que contribuyen a tener un clima institucional armonioso y libre de toda discriminación."]
[null,"ü","Se comunica en lengua originaria con los estudiantes."]
[]
[null,"Competencia 04: Conduce el proceso de enseñanza con dominio de los contenidos disciplinares y el uso de estrategias y recursos pertinentes, para que todos los estudiantes aprendan de manera reflexiva y crítica lo que concierne a la solución de problemas relacionados con sus experiencias, intereses y contextos culturales."]
[null,null,null,null,null,null,null,null,"Sí","No"]
[null,"ü","El docente cuenta con el Cartel Diversificado de acuerdo al DCN para la elaboración de sus unidades y sesiones de aprendizaje."]
[null,"ü","De acuerdo a la ficha de monitoreo y acompañamiento al docente, se evidenció el uso pedagógico de los materiales educativos tanto en lengua originaria como en castellano como  segunda lengua."]
[null,"ü","De acuerdo a la ficha de monitoreo y acompañamiento al docente, se evidenció la implementación de estrategias innovadoras en el marco de la implementación de la propuesta EIB."]
[]
[null,"Competencia 05: Evalúa permanentemente el aprendizaje de acuerdo con los objetivos institucionales previstos, para tomar decisiones y retroalimentar a sus estudiantes y a la comunidad educativa, teniendo en cuenta las diferencias individuales y los contextos culturales."]
[null,null,null,null,null,null,null,null,"SÍ","NO"]
[null,"ü","El docente elabora los instrumentos de evaluación para sistematizar el proceso de aprendizaje de los estudiantes."]
[null,"ü","Los indicadores de evaluación elaborados por el docente responden al desarrollo de compentencias de los estudiantes."]
[]
[null,null,null,null,null,null,null,"Nunca","Pocas Veces","Siempre"]
[null,"ü","El docente respeta la calendarización para la entrega oportuna de los registros de los resultados de aprendizaje."]
[]
["DOMINIO 03: PARTICIPACIÓN EN LA GESTIÓN DE LA ESCUELA ARTICULADA A LA COMUNIDAD"]
[null,"Competencia 06: Participa activamente, con actitud democrática, crítica y colaborativa, en la gestión de la escuela, contribuyendo a la construcción y mejora contínua del Proyecto Educativo Institucional y así éste pueda generar aprendizajes de calidad."]
[null,null,null,null,null,null,null,"Nunca","Pocas Veces","Siempre"]
[null,"ü","El docente participa activamente en las jornadas de planificación y reflexión con la comunidad educativa para lograr los aprendizajes."]
[]
[null,"Competencia 07: Establece relaciones de respeto, colaboración y corresponsabilidad con las familias, la comunidad y otras instituciones del Estado y la sociedad civil; aprovecha sus saberes y recursos en los procesos educativos y da cuenta de los resultados."]
[null,null,null,null,null,null,null,"Nunca","Pocas Veces","Siempre"]
[null,"ü","El docente programa reuniones con los padres de familia."]
[]
[null,null,null,null,null,null,null,null,"SÍ","NO"]
[null,"ü","El docente cuenta con actas de las reuniones con los padres de familia en las que se establecen acuerdos de convivencia y participación a favor de los estudiantes e informa el cumplimiento de horas efectivas."]
[]
["DOMINIO 04: DESARROLLO DE LA PROFESIONALIDAD Y LA IDENTIDAD DOCENTE"]
[null,"Competencia 08: Reflexiona sobre su práctica y experiencia institucional y desarrolla procesos de aprendizaje contínuo de modo individual y colectivo, para construir y armar su identidad y responsabilidad profesional."]
[null,null,null,null,null,null,null,null,"SÍ","NO"]
[null,"ü","El docente cuenta con constancias o certificados de capacitación, en los últimos 5 años."]
[null,"ü","El docente cuenta con Resoluciones de Felicitación y reconocimiento por labores propias al quehacer del magisterio emitidas por las instancias rectoras."]
[]
[null,"Competencia 09: Ejerce su profesión desde una ética de respeto de los derechos fundamentales de las personas, demostrando honestidad, justicia, responsabilidad y compromiso con su función social."]
[null,null,null,null,null,null,null,"Nunca","Pocas Veces","Siempre"]
[null,"ü","El docente asiste puntualmente a sus labores."]
[null,"ü","El docente cumple con la calendarización y respeta el horario de clases, programadas por la Institución Educativa."]
[]
[null,"RESUMEN"]
[null,null,"Valores",null,"Número de Valores",null,"Total del Valor"]
[null,null,"Sí (1 punto)",null,{"$f":"COUNTIF(M17:M24,\"=1\")+COUNTIF(M34:M41,\"=1\")+COUNTIF(M56:M62,\"=1\")","v":0},null,{"$f":"E71*1","v":0}]
[null,null,"No (0 puntos)",null,{"$f":"COUNTIF(M17:M24,\"=2\")+COUNTIF(M34:M41,\"=2\")+COUNTIF(M56:M62,\"=2\")","v":0},null,{"$f":"E72*0","v":0}]
[null,null,"Nunca (0 puntos)",null,{"$f":"COUNTIF(M29:M30,\"=1\")+COUNTIF(M44:M53,\"=1\")+COUNTIF(M66:M67,\"=1\")","v":0},null,{"$f":"E73*0","v":0}]
[null,null,"Pocas Veces (1 punto)",null,{"$f":"COUNTIF(M29:M30,\"=2\")+COUNTIF(M44:M53,\"=2\")+COUNTIF(M66:M67,\"=2\")","v":0},null,{"$f":"E74*1","v":0}]
[null,null,"Siempre (2 puntos)",null,{"$f":"COUNTIF(M29:M30,\"=3\")+COUNTIF(M44:M53,\"=3\")+COUNTIF(M66:M67,\"=3\")","v":0},null,{"$f":"E75*2","v":0}]
[null,null,"Puntaje Total",null,null,null,{"$f":"SUM(G71:H75)","v":0},null,{"$f":"IF(G76=0,\"\",IF(G76<14,\"NO RATIFICADO\",\"RATIFICADO\"))","v":""}]
[]
[]
[]
[null,null,"Firma y Sello del Director de la I.E."]
["NOTA:"]
[null,"ü","Si el docente contratado cuenta como mínimo con 14 puntos a favor, reúne las condiciones para ser propuesto por el Director de la Institución Educativa."]
[null,"ü","La presente ficha de evaluación debe contar con el Vº Bº del representante del CONEI"]

{"sheet":"Hoja2","index":1,"n_rows":13,"n_cols":2,"rows_kept":13,"cut":false,"hidden":true,"merged":[]}
["NIVEL","AREAS"]
[]
["INICIAL","MATEMÁTICA"]
["PRIMARIA","COMUNICACIÓN"]
["SECUNDARIA","INGLÉS"]
[null,"ARTE"]
[null,"HISTORIA, GEOGRAFÍA Y ECONOMÍA"]
[null,"FORMACIÓN CIUDADANA Y CÍVICA"]
[null,"PERSONA, FAMILIA Y RELACIONES HUMANAS"]
[null,"EDUCACIÓN FÍSICA"]
[null,"EDUCACIÓN RELIGIOSA"]
[null,"CIENCIA, TECNOLOGÍA Y AMBIENTE"]
[null,"EDUCACIÓN PARA EL TRABAJO"]

{"sheet":"RESUMEN","index":2,"n_rows":16,"n_cols":7,"rows_kept":16,"cut":false,"hidden":false,"merged":[[8,0,8,5],[2,0,2,6],[3,0,3,1],[3,2,3,3],[15,0,15,1],[10,0,10,1],[11,0,11,1],[12,0,12,1],[13,0,13,1],[14,0,14,1]]}
[]
[]
["RESUMEN DE LA FICHA DE EVALUACIÓN DEL DESEMPEÑO DOCENTE"]
[]
[]
["FECHA","DATOS INFORMATIVOS","DOMINIO 1","DOMINIO 2","DOMINIO 3","DOMINIO 4","CONCLUSIÓN"]
[{"$f":"IF(Hoja1!C12=0,\"\",Hoja1!C12)","v":""},{"$f":"CONCATENATE(\"I.E.: \",Hoja1!C7, \".  Lugar: \",Hoja1!C8,  \". Nivel: \", Hoja1!C9,\". Docente: \", Hoja1!C10, \". Aula/Area: \", Hoja1!C11)","v":"I.E.: .  Lugar: . Nivel: . Docente: . Aula/Area: "},{"$f":"CONCATENATE(\"DOMINIO 01: PREPARACIÓN PARA EL APRENDIZAJE DE LOS ESTUDIANTES. \",\"Competencia 1: \", IF(Hoja1!M17=1,\"El docente si cuenta con: Anecdotario, cuaderno de ocurrencias o ficha de estudiantes para el registro de las competencias, habilidades y necesidades de los estudiantes. \",IF(Hoja1!M17=2,\"El docente no cuenta con: Anecdotario, cuaderno de ocurrencias o ficha de estudiantes para el registro de las competencias, habilidades y necesidades de los estudiantes. \", \"\")),  IF(Hoja1!M18=1,\"El docente si cuenta con actas de reuniones de información y coordinación con los padres de familia sobre el desempaño de sus hijos. \",IF(Hoja1!M18=2,\"El docente no cuenta con actas de reuniones de información y coordinación con los padres de familia sobre el desempaño de sus hijos. \",\"\")),\"Competencia 2: \",IF(Hoja1!M22=1,\"El docente cuenta con: Carpeta pedagógica que contiene las sesiones de aprendizaje con enfoque intercultural, \",IF(Hoja1!M22=2,\"El docente no cuenta con: Carpeta pedagógica que contiene las sesiones de aprendizaje con enfoque intercultural, \",\"\")),IF(Hoja1!M23=1,\"cuenta con calendario comunal, \",IF(Hoja1!M23=2,\"no cuenta con calendario comunal, \",\"\")),IF(Hoja1!M24=1,\"elabora proyectos de aprendizaje en el que incorpora el tratamiento de lenguas. \",IF(Hoja1!M24=2,\"no elabora proyectos de aprendizaje en el que incorpora el tratamiento de lenguas. \",\"\")))","v":"DOMINIO 01: PREPARACIÓN PARA EL APRENDIZAJE DE LOS ESTUDIANTES. Competencia 1: Competencia 2: "},{"$f":"CONCATENATE(\"DOMINIO 02: ENSEÑANZA PARA EL APRENDIZAJE DE LOS ESTUDIANTES. \",\"Competencia 3: \", IF(Hoja1!M29=1,\"El docente nunca implementa en el aula, junto con los estudiantes, las normas de convivencia que contribuyen a tener un clima institucional armonioso y libre de toda discriminación, \",IF(Hoja1!M29=2,\"El docente pocas veces implementa en el aula, junto con los estudiantes, las normas de convivencia que contribuyen a tener un clima institucional armonioso y libre de toda discriminación, \", IF(Hoja1!M29=3,\"El docente siempre implementa en el aula, junto con los estudiantes, las normas de convivencia que contribuyen a tener un clima institucional armonioso y libre de toda discriminación, \",\"\"))), IF(Hoja1!M30=1,\"nunca se comunica en lengua originaria con los estudiantes. \",IF(Hoja1!M30=2,\"pocas veces se comunica en lengua originaria con los estudiantes. \", IF(Hoja1!M30=3,\"siempre se comunica en lengua originaria con los estudiantes.  \",\"\"))),\"Competencia 4: \", IF(Hoja1!M34=1,\"El docente si cuenta con el Cartel Diversificado de acuerdo al DCN para la elaboración de sus unidades y sesiones de aprendizaje, \",IF(Hoja1!M34=2,\"El docente no cuenta con el Cartel Diversificado de acuerdo al DCN para la elaboración de sus unidades y sesiones de aprendizaje, \",\"\")),IF(Hoja1!M35=1,\"se evidenció el uso pedagógico de los materiales educativos tanto en lengua originaria como en castellano como  segunda lengua, \",IF(Hoja1!M35=2,\"no se evidenció el uso pedagógico de los materiales educativos tanto en lengua originaria como en castellano como  segunda lengua, \",\"\")),IF(Hoja1!M36=1,\"se evidenció la implementación de estrategias innovadoras en el marco de la implementación de la propuesta EIB. \",IF(Hoja1!M36=2,\"no se evidenció la implementación de estrategias innovadoras en el marco de la implementación de la propuesta EIB. \",\"\")),\"Competencia 5: \", IF(Hoja1!M40=1,\"El docente si elaboró los instrumentos de evaluación para sistematizar el proceso de aprendizaje de los estudiantes, \",IF(Hoja1!M40=2,\"El docente no elaboró los instrumentos de evaluación para sistematizar el proceso de aprendizaje de los estudiantes, \", \"\")),IF(Hoja1!M41=1,\"los indicadores de evaluación elaborados por el docente si responden al desarrollo de compentencias de los estudiantes. \",IF(Hoja1!M41=2,\"los indicadores de evaluación elaborados por el docente no responden al desarrollo de compentencias de los estudiantes. \", \"\")),IF(Hoja1!M44=1,\"El docente nunca respeta la calendarización para la entrega oportuna de los registros de los resultados de aprendizaje. \",IF(Hoja1!M44=2,\"El docente pocas veces respeta la calendarización para la entrega oportuna de los registros de los resultados de aprendizaje. \", IF(Hoja1!M44=3,\"El docente siempre respeta la calendarización para la entrega oportuna de los registros de los resultados de aprendizaje. \",\"\"))))","v":"DOMINIO 02: ENSEÑANZA PARA EL APRENDIZAJE DE LOS ESTUDIANTES. Competencia 3: Competencia 4: Competencia 5: "},{"$f":"CONCATENATE(\"DOMINIO 03: PARTICIPACIÓN EN LA GESTIÓN DE LA ESCUELA ARTICULADA A LA COMUNIDAD. \",\"Competencia 6: \", IF(Hoja1!M49=1,\"El docente nunca participa activamente en las jornadas de planificación y reflexión con la comunidad educativa para lograr los aprendizajes. \",IF(Hoja1!M49=2,\"El docente pocas veces participa activamente en las jornadas de planificación y reflexión con la comunidad educativa para lograr los aprendizajes. \", IF(Hoja1!M49=3,\"El docente siempre participa activamente en las jornadas de planificación y reflexión con la comunidad educativa para lograr los aprendizajes. \",\"\"))),\"Competencia 7: \",IF(Hoja1!M53=1,\"El docente nunca programa reuniones con los padres de familia. \",IF(Hoja1!M53=2,\"El docente pocas veces programa reuniones con los padres de familia. \",IF(Hoja1!M53=3,\"El docente siempre programa reuniones con los padres de familia. \",\"\"))),IF(Hoja1!M56=1,\"El docente cuenta con actas de las reuniones con los padres de familia en las que se establecen acuerdos de convivencia y participación a favor de los estudiantes e informa el cumplimiento de horas efectivas. \",IF(Hoja1!M56=2,\"El docente no cuenta con actas de las reuniones con los padres de familia en las que se establecen acuerdos de convivencia y participación a favor de los estudiantes ni informa el cumplimiento de horas efectivas. \", \"\")))","v":"DOMINIO 03: PARTICIPACIÓN EN LA GESTIÓN DE LA ESCUELA ARTICULADA A LA COMUNIDAD. Competencia 6: Competencia 7: "},{"$f":"CONCATENATE(\"DOMINIO 04: DESARROLLO DE LA PROFESIONALIDAD Y LA IDENTIDAD DOCENTE. \",\"Competencia 8: \", IF(Hoja1!M61=1,\"El docente cuenta con constancias o certificados de capacitación, en los últimos 5 años. \",IF(Hoja1!M61=2,\"El docente no cuenta con constancias o certificados de capacitación, en los últimos 5 años. \", \"\")),  IF(Hoja1!M62=1,\"El docente cuenta con Resoluciones de Felicitación y reconocimiento por labores propias al quehacer del magisterio emitidas por las instancias rectoras. \",IF(Hoja1!M62=2,\"El docente no cuenta con Resoluciones de Felicitación ni reconocimiento por labores propias al quehacer del magisterio emitidas por las instancias rectoras. \",\"\")),\"Competencia 9: \",IF(Hoja1!M66=1,\"El docente nunca asiste puntualmente a sus labores. \",IF(Hoja1!M66=2,\"El docente pocas veces asiste puntualmente a sus labores. \",IF(Hoja1!M66=3,\"El docente siempre asiste puntualmente a sus labores. \",\"\"))),IF(Hoja1!M67=1,\"El docente nunca cumple con la calendarización ni respeta el horario de clases, programadas por la Institución Educativa. \",IF(Hoja1!M67=2,\"El docente pocas veces cumple con la calendarización y pocas veces respeta el horario de clases, programadas por la Institución Educativa. \",IF(Hoja1!M67=3,\"El docente siempre cumple con la calendarización y respeta el horario de clases, programadas por la Institución Educativa. \",\"\"))))","v":"DOMINIO 04: DESARROLLO DE LA PROFESIONALIDAD Y LA IDENTIDAD DOCENTE. Competencia 8: Competencia 9: "},{"$f":"IF(Hoja1!I76=0,\"\",Hoja1!I76)","v":""}]
[]
["RESUMEN ESTADÍSTICO DE LOS VALORES DE LAS PUNTUACIONES DEL DESEMPEÑO DOCENTE"]
[]
["Valores",null,"Número de Valores"]
["Sí (1 punto)",null,{"$f":"Hoja1!E71","v":0}]
["No (0 puntos)",null,{"$f":"Hoja1!E72","v":0}]
["Nunca (0 puntos)",null,{"$f":"Hoja1!E73","v":0}]
["Pocas Veces (1 punto)",null,{"$f":"Hoja1!E74","v":0}]
["Siempre (2 puntos)",null,{"$f":"Hoja1!E75","v":0}]

{"sheet":"CONSOLIDADO","index":3,"n_rows":5,"n_cols":7,"rows_kept":5,"cut":false,"hidden":false,"merged":[[2,0,2,5],[3,0,3,1],[3,2,3,3]]}
[]
[]
["CONSOLIDADO DE LA EVALUACIÓN DEL DESEMPEÑO DOCENTE"]
[]
["FECHA","DATOS INFORMATIVOS","DOMINIO 1","DOMINIO 2","DOMINIO 3","DOMINIO 4","CONCLUSION"]